fUST/lending_fUST_20260106
["ID","MTS","AMOUNT","RATE_DAILY","PERIOD"]
[400517660,1767693040204,-4155.23406835,0.00018909,2]
[400517661,1767693040213,-7379.69570539,0.00018909,2]
[400517662,1767693040223,-212.54773642,0.00018921,2]
[400517663,1767693040232,-347.0,0.00018922,2]
[400517664,1767693040241,-152.0,0.00018922,2]
[400517665,1767693040250,-347.0,0.00018922,2]
[400517666,1767693040259,-152.0,0.00018922,2]
[400517667,1767693040268,-151.0,0.00018922,2]
[400517668,1767693040277,-347.0,0.00018922,2]
[400517669,1767693040286,-152.0,0.00018922,2]
[400517670,1767693040295,-152.0,0.00018922,2]
[400517671,1767693040305,-166.0,0.00018922,2]
[400517672,1767693040315,-347.0,0.00018922,2]
[400517673,1767693040324,-152.0,0.00018922,2]
[400517674,1767693040333,-163.0,0.00018922,2]
[400517675,1767693040342,-152.0,0.00018922,2]
[400517676,1767693040351,-166.0,0.00018922,2]
[400517677,1767693040360,-151.0,0.00018922,2]
[400517678,1767693040369,-347.0,0.00018922,2]
[400517679,1767693040378,-152.0,0.00018922,2]
[400517680,1767693040387,-203.94663828,0.00018922,2]
[400517681,1767693040396,-166.0,0.00018922,2]
[400517682,1767693040405,-151.0,0.00018922,2]
[400517683,1767693040414,-347.0,0.00018922,2]
[400517684,1767693040423,-152.0,0.00018922,2]
[400517685,1767693040433,-152.0,0.00018922,2]
[400517686,1767693040442,-336.0,0.00018922,2]
[400517687,1767693040450,-166.0,0.00018922,2]
[400517688,1767693040459,-151.0,0.00018922,2]
[400517689,1767693040468,-152.0,0.00018922,2]
[400517690,1767693040477,-347.0,0.00018922,2]
[400517691,1767693040486,-152.0,0.00018922,2]
[400517692,1767693040495,-166.0,0.00018922,2]
[400517693,1767693040505,-336.0,0.00018922,2]
[400517694,1767693040514,-151.0,0.00018922,2]
[400517695,1767693040524,-152.0,0.00018922,2]
[400517696,1767693040534,-347.0,0.00018922,2]
[400517697,1767693040544,-336.0,0.00018922,2]
[400517698,1767693040553,-166.0,0.00018922,2]
[400517699,1767693040563,-151.0,0.00018922,2]
[400517700,1767693040573,-152.0,0.00018922,2]
[400517701,1767693040583,-300.09906801,0.00018922,2]
[400517702,1767693040592,-347.0,0.00018922,2]
[400517703,1767693040602,-166.0,0.00018922,2]
[400517704,1767693040612,-336.0,0.00018922,2]
[400517705,1767693040622,-151.0,0.00018922,2]
[400517706,1767693040632,-152.0,0.00018922,2]
[400517707,1767693040641,-347.0,0.00018922,2]
[400517708,1767693040651,-172.0,0.00018922,2]
[400517709,1767693040660,-151.0,0.00018922,2]
[400517710,1767693040669,-152.0,0.00018922,2]
[400517711,1767693040678,-336.0,0.00018922,2]
[400517712,1767693040688,-347.0,0.00018922,2]
[400517713,1767693040697,-151.0,0.00018922,2]
[400517714,1767693040707,-336.0,0.00018922,2]
[400517715,1767693040716,-152.0,0.00018922,2]
[400517716,1767693040726,-347.0,0.00018922,2]
[400517717,1767693040735,-151.0,0.00018922,2]
[400517718,1767693040745,-336.0,0.00018922,2]
[400517719,1767693040754,-347.0,0.00018922,2]
[400517720,1767693040764,-152.0,0.00018922,2]
[400517721,1767693040773,-151.0,0.00018922,2]
[400517722,1767693040782,-336.0,0.00018922,2]
[400517723,1767693040791,-347.0,0.00018922,2]
[400517724,1767693040800,-152.0,0.00018922,2]
[400517725,1767693040810,-151.0,0.00018922,2]
[400517726,1767693040820,-151.0,0.00018922,2]
[400517727,1767693040829,-336.0,0.00018922,2]
[400517728,1767693040841,-347.0,0.00018922,2]
[400517729,1767693040851,-152.0,0.00018922,2]
[400517730,1767693040860,-151.0,0.00018922,2]
[400517731,1767693040870,-151.0,0.00018922,2]
[400517732,1767693040881,-347.0,0.00018922,2]
[400517733,1767693040890,-336.0,0.00018922,2]
[400517734,1767693040899,-152.0,0.00018922,2]
[400517735,1767693040908,-151.0,0.00018922,2]
[400517736,1767693040919,-151.0,0.00018922,2]
[400517737,1767693040928,-336.0,0.00018922,2]
[400517738,1767693040937,-152.0,0.00018922,2]
[400517739,1767693040946,-347.0,0.00018922,2]
[400517740,1767693040956,-151.0,0.00018922,2]
[400517741,1767693040965,-151.0,0.00018922,2]
[400517742,1767693040974,-336.0,0.00018922,2]
[400517743,1767693040984,-152.0,0.00018922,2]
[400517744,1767693040993,-347.0,0.00018922,2]
[400517745,1767693041003,-151.0,0.00018922,2]
[400517746,1767693041012,-151.0,0.00018922,2]
[400517747,1767693041021,-266.60656086,0.00018922,2]
[400517748,1767693041031,-336.0,0.00018922,2]
[400517749,1767693041040,-347.0,0.00018922,2]
[400517750,1767693041049,-151.0,0.00018922,2]
[400517751,1767693041058,-151.0,0.00018922,2]
[400517752,1767693041067,-336.0,0.00018922,2]
[400517753,1767693041076,-347.0,0.00018922,2]
[400517754,1767693041085,-151.0,0.00018922,2]
[400517755,1767693041093,-151.0,0.00018922,2]
[400517756,1767693041103,-336.0,0.00018922,2]
[400517757,1767693041112,-347.0,0.00018922,2]
[400517758,1767693041121,-151.0,0.00018922,2]
[400517759,1767693041130,-151.0,0.00018922,2]
[400517760,1767693041141,-336.0,0.00018922,2]
[400517761,1767693041150,-151.0,0.00018922,2]
[400517762,1767693041159,-151.0,0.00018922,2]
[400517763,1767693041168,-336.0,0.00018922,2]
[400517764,1767693041177,-187.9115595,0.00018922,2]
[400517765,1767693041187,-151.0,0.00018922,2]
[400517766,1767693041196,-336.0,0.00018922,2]
[400517767,1767693041204,-347.0,0.00018922,2]
[400517768,1767693041213,-151.0,0.00018922,2]
[400517769,1767693041222,-336.0,0.00018922,2]
[400517770,1767693041231,-347.0,0.00018922,2]
[400517771,1767693041240,-336.0,0.00018922,2]
[400517772,1767693041249,-151.0,0.00018922,2]
[400517773,1767693041258,-347.0,0.00018922,2]
[400517774,1767693041267,-336.0,0.00018922,2]
[400517775,1767693041276,-151.0,0.00018922,2]
[400517776,1767693041286,-336.0,0.00018922,2]
[400517777,1767693041295,-347.0,0.00018922,2]
[400517778,1767693041304,-151.0,0.00018922,2]
[400517779,1767693041314,-336.0,0.00018922,2]
[400517780,1767693041322,-347.0,0.00018922,2]
[400517781,1767693041331,-151.0,0.00018922,2]
[400517782,1767693041340,-336.0,0.00018922,2]
[400517783,1767693041349,-347.0,0.00018922,2]
[400517784,1767693041358,-151.0,0.00018922,2]
[400517785,1767693041367,-336.0,0.00018922,2]
[400517786,1767693041376,-347.0,0.00018922,2]
[400517787,1767693041385,-151.0,0.00018922,2]
[400517788,1767693041395,-336.0,0.00018922,2]
[400517789,1767693041405,-347.0,0.00018922,2]
[400517790,1767693041414,-151.0,0.00018922,2]
[400517791,1767693041424,-336.0,0.00018922,2]
[400517792,1767693041432,-347.0,0.00018922,2]
[400517793,1767693041442,-151.0,0.00018922,2]
[400517794,1767693041451,-336.0,0.00018922,2]
[400517795,1767693041460,-347.0,0.00018922,2]
[400517796,1767693041469,-152.47148101,0.00018922,2]
[400517797,1767693041478,-336.0,0.00018922,2]
[400517798,1767693041488,-347.0,0.00018922,2]
[400517799,1767693041497,-347.0,0.00018922,2]
[400517800,1767693041507,-384.35661619,0.00018922,2]
[400517801,1767693041516,-347.0,0.00018922,2]
[400517802,1767693041525,-347.0,0.00018922,2]
[400517803,1767693041535,-347.0,0.00018922,2]
[400517804,1767693041544,-347.0,0.00018922,2]
[400517805,1767693041553,-347.0,0.00018922,2]
[400517806,1767693041563,-347.0,0.00018922,2]
[400517807,1767693041572,-384.52149602,0.00018922,2]
[400517808,1767693041581,-13758.54,0.00018988,3]
[400517809,1767693041590,-2000.0,0.00019016,3]
[400517810,1767693041599,-2000.0,0.00019025,3]
[400517811,1767693041609,-151.0,0.00019029,2]
[400517812,1767693041618,-2000.0,0.00019033,3]
[400517813,1767693041627,-2000.0,0.00019042,3]
[400517814,1767693041637,-2000.0,0.00019051,3]
[400517815,1767693041646,-2000.0,0.00019058,3]
[400517816,1767693041655,-2000.0,0.0001906,3]
[400517817,1767693041665,-2000.0,0.00019067,3]
[400517818,1767693041675,-2000.0,0.00019076,3]
[400517819,1767693041684,-2000.0,0.00019085,3]
[400517820,1767693041693,-2000.0,0.00019093,3]
[400517821,1767693041702,-2000.0,0.00019102,3]
[400517822,1767693041711,-2000.0,0.00019111,3]
[400517823,1767693041721,-2000.0,0.0001912,3]
[400517824,1767693041731,-2000.0,0.00019129,3]
[400517825,1767693041740,-644.0,0.00019161,2]
[400517826,1767693041862,-1991.83840283,0.00019177,3]
[400517827,1767693041871,-151.0,0.00019178,2]
[400517828,1767693041882,-236.563669,0.00019178,2]
[400517829,1767693041891,-151.0,0.00019178,2]
[400517830,1767693041900,-151.0,0.00019178,2]
[400517831,1767693041912,-154.084024,0.00019178,2]
[400517832,1767693041921,-191.004961,0.00019178,2]
[400517833,1767693041930,-153.376724,0.00019178,2]
[400517834,1767693041939,-454.253042,0.00019178,2]
[400517835,1767693041948,-454.253042,0.00019178,2]
[400517836,1767693041957,-153.789809,0.00019178,2]
[400517837,1767693041966,-176.133271,0.00019178,2]
[400517838,1767693041975,-151.0,0.00019178,2]
[400517839,1767693041984,-151.0,0.00019178,2]
[400517840,1767693041993,-263.925561,0.00019178,2]
[400517841,1767693042002,-151.893811,0.00019178,2]
[400517842,1767693042011,-151.0,0.00019178,2]
[400517843,1767693042020,-151.0,0.00019178,2]
[400517844,1767693042030,-151.0,0.00019178,2]
[400517845,1767693042039,-28920.58,0.000192,2]
[400517846,1767693042048,-155.6642443,0.00019205,2]
[400517847,1767693042058,-600.6566519,0.00019205,2]
[400517848,1767693042067,-600.6566519,0.00019205,2]
[400517849,1767693042076,-600.6566519,0.00019205,2]
[400517850,1767693042085,-600.6566519,0.00019205,2]
[400517851,1767693042095,-600.6566519,0.00019205,2]
[400517852,1767693042103,-600.6566519,0.00019205,2]
[400517853,1767693042112,-600.6566519,0.00019205,2]
[400517854,1767693042122,-600.6566519,0.00019205,2]
[400517855,1767693042131,-574.12855637,0.00019261,2]
[400517856,1767693042140,-2773.56790519,0.00019261,2]
[400517857,1767693042149,-644.0,0.00019273,2]
[400517858,1767693042159,-597.0,0.00019279,2]
[400517859,1767693042168,-644.0,0.00019288,2]
[400517860,1767693042177,-777.0,0.000193,2]
[400517861,1767693042186,-644.0,0.00019334,2]
[400517862,1767693042195,-753.6400718,0.00019342,2]
[400517863,1767693042204,-376.8200359,0.00019342,2]
[400517864,1767693042213,-376.8200359,0.00019342,2]
[400517865,1767693042222,-376.8200359,0.00019342,2]
[400517866,1767693042231,-376.8200359,0.00019342,2]
[400517867,1767693042241,-376.8200359,0.00019342,2]
[400517868,1767693042250,-376.8200359,0.00019342,2]
[400517869,1767693042259,-376.8200359,0.00019342,2]
[400517870,1767693042269,-151.0,0.00019352,2]
[400517871,1767693042278,-597.0,0.000194,2]
[400517872,1767693042287,-597.0,0.00019407,2]
[400517873,1767693042296,-800.0,0.00019452,7]
[400517874,1767693042309,-378.79976082,0.00019481,2]
[400517875,1767693042319,-1777.927917,0.000195,2]
[400517876,1767693042328,-716.97254675,0.00019507,2]
[400517877,1767693042337,-597.0,0.00019524,2]
[400517878,1767693042346,-597.0,0.00019537,2]
[400517879,1767693042355,-644.0,0.00019591,2]
[400517880,1767693042365,-2224.69693145,0.000196,2]
[400517881,1767693042374,-597.0,0.00019623,2]
[400517882,1767693042383,-644.0,0.00019634,2]
[400517883,1767693042392,-644.0,0.00019671,2]
[400517884,1767693042403,-151.0,0.00019676,2]
[400517885,1767693042413,-597.0,0.0001974,2]
[400517886,1767693042422,-597.0,0.00019764,2]
[400517887,1767693042432,-177503.13677398,0.000198,2]
[400517888,1767693042441,-597.0,0.00019803,2]
[400517889,1767693042452,-595.37131296,0.00019809,2]
[400517890,1767693042469,-2876.18991768,0.00019809,2]
[400517891,1767693042479,-170.73155875,0.00019875,30]
[400517892,1767693042489,-10000.0,0.000199,2]
[400517893,1767693042501,-292.5920699,0.00019958,2]
[400517894,1767693042511,-454.253042,0.00019958,2]
[400517895,1767693042521,-597.0,0.00019977,2]
[400517896,1767693042532,-160.0,0.00019993,4]
[400517897,1767693042542,-160.0,0.00019993,5]
[400517898,1767693042551,-81330.10480481,0.0002,2]
[400517899,1767693042570,-11181.39239799,0.0002,2]
[400517900,1767693042581,-2500.0,0.0002,2]
[400517901,1767693042592,-3487.07638594,0.0002,2]
[400517902,1767693042603,-1419.96876349,0.0002,2]
[400517903,1767693042615,-826.08819371,0.0002,2]
[400517904,1767693042729,-8992.01514572,0.0002,2]
[400517976,1767693044985,-2147.26216477,0.00014732,2]
[400517977,1767693045002,-147.12325884,0.00014732,2]
[400517978,1767693045011,-286.0795197,0.00017069,2]
[400517979,1767693045021,-376.8200359,0.00018384,2]
[400517980,1767693045030,-1201.3133038,0.00019205,2]
[400517981,1767693045040,-12022.47852228,0.0002,2]
[400518010,1767693923496,1969.9,0.00030136,120]
[400518011,1767693923714,1969.9,0.00030136,120]
[400518012,1767693924121,1969.9,0.00030136,120]
[400518013,1767693924360,1969.9,0.00030136,120]
[400518014,1767693924574,1969.9,0.00030136,120]
[400518015,1767693924894,1969.9,0.00030136,120]
[400518016,1767693925154,1969.9,0.00030136,120]
[400518017,1767693925376,1969.9,0.00030136,120]
[400518018,1767693925603,1969.9,0.00030136,120]
[400518019,1767693925866,1969.9,0.00030136,120]
[400518020,1767693926099,1969.9,0.00030136,120]
[400518021,1767693926324,1969.9,0.00030136,120]
[400518022,1767693926546,1969.9,0.00030136,120]
[400518023,1767693926893,1969.9,0.00030136,120]
[400518024,1767693926995,1969.9,0.00030136,120]
[400518025,1767693927233,1969.9,0.00030136,120]
[400518026,1767693927640,1969.9,0.00030136,120]
[400518027,1767693927884,1969.9,0.00030136,120]
[400518028,1767693928115,1969.9,0.00030136,120]
[400518029,1767693928345,1969.9,0.00030136,120]
[400518030,1767693928570,1969.9,0.00030136,120]
[400518031,1767693928841,1969.9,0.00030136,120]
[400518032,1767693929459,1969.9,0.00030136,120]
[400518033,1767693929787,1970.07410617,0.00030136,120]
[400518306,1767694231787,-228.08421644,0.00013009,10]
[400518309,1767694231798,-289.91431903,0.0001314,10]
[400518314,1767694231840,-810.82204174,0.0001314,10]
[400518316,1767694231850,-500.0,0.00013273,2]
[400518318,1767694231860,-608.0,0.00013273,2]
[400518320,1767694231870,-269.4371124,0.0001331,2]
[400518322,1767694231879,-1200.0,0.00013347,2]
[400518324,1767694231888,-22288.64796943,0.00013348,2]
[400518326,1767694231900,-418.0,0.00013348,2]
[400518430,1767694237800,-673.13906697,0.00013347,2]
[400518432,1767694237810,-500.0,0.00013347,2]
[400518434,1767694237820,-584.90496928,0.00013347,2]
[400518436,1767694237829,-298.39399047,0.00013347,2]
[400518438,1767694237838,-373.59972329,0.00013347,2]
[400518440,1767694237850,-299.53934368,0.00013347,2]
[400518442,1767694237860,-673.13906697,0.00013347,2]
[400518444,1767694237870,-673.13906697,0.00013347,2]
[400518447,1767694237879,-673.13906697,0.00013347,2]
[400518448,1767694237889,-673.13906697,0.00013347,2]
[400518449,1767694237898,-673.13906697,0.00013347,2]
[400518450,1767694237908,-673.13906697,0.00013347,2]
[400518451,1767694237917,-673.13906697,0.00013347,2]
[400518453,1767694237927,-673.13906697,0.00013347,2]
[400518455,1767694237937,-673.13906697,0.00013347,2]
[400518457,1767694237947,-673.13906697,0.00013347,2]
[400518459,1767694237959,-673.13906697,0.00013347,2]
[400518461,1767694237968,-673.13906697,0.00013347,2]
[400518463,1767694237978,-673.13906697,0.00013347,2]
[400518465,1767694237987,-673.13906697,0.00013347,2]
[400518467,1767694237996,-673.13906697,0.00013347,2]
[400518469,1767694238006,-673.13906697,0.00013347,2]
[400518471,1767694238015,-673.13906697,0.00013347,2]
[400518473,1767694238024,-673.13906697,0.00013347,2]
[400518475,1767694238034,-673.13906697,0.00013347,2]
[400518477,1767694238043,-673.13906697,0.00013347,2]
[400518479,1767694238053,-500.0,0.00013347,2]
[400518481,1767694238062,-500.0,0.00013347,2]
[400518483,1767694238072,-500.0,0.00013347,2]
[400518485,1767694238088,-500.0,0.00013347,2]
[400518487,1767694238098,-500.0,0.00013347,2]
[400518489,1767694238107,-500.0,0.00013347,2]
[400518491,1767694238117,-500.0,0.00013347,2]
[400518493,1767694238127,-500.0,0.00013347,2]
[400518494,1767694238136,-500.0,0.00013347,2]
[400518496,1767694238146,-673.13906697,0.00013347,2]
[400518498,1767694238155,-500.0,0.00013347,2]
[400518500,1767694238166,-500.0,0.00013347,2]
[400518502,1767694238175,-500.0,0.00013347,2]
[400518505,1767694238193,-500.0,0.00013347,2]
[400518507,1767694238203,-500.0,0.00013347,2]
[400518509,1767694238213,-500.0,0.00013347,2]
[400518511,1767694238225,-500.0,0.00013347,2]
[400518513,1767694238238,-635.0,0.00013347,2]
[400518515,1767694238249,-500.0,0.00013347,2]
[400518517,1767694238269,-549.26351804,0.00013347,2]
[400518519,1767694238279,-500.0,0.00013347,2]
[400518521,1767694238290,-500.0,0.00013347,2]
[400518523,1767694238301,-500.0,0.00013347,2]
[400518525,1767694238311,-500.0,0.00013347,2]
[400518528,1767694238325,-500.0,0.00013347,2]
[400518529,1767694238335,-500.0,0.00013347,2]
[400518532,1767694238346,-500.0,0.00013347,2]
[400518534,1767694238356,-500.0,0.00013347,2]
[400518536,1767694238367,-500.0,0.00013347,2]
[400518538,1767694238377,-326.51935378,0.00013347,2]
[400518539,1767694238387,-550.0,0.00013347,2]
[400518541,1767694238397,-500.0,0.00013347,2]
[400518543,1767694238408,-500.0,0.00013347,2]
[400518546,1767694238420,-500.0,0.00013347,2]
[400518548,1767694238431,-500.0,0.00013347,2]
[400518550,1767694238441,-500.0,0.00013347,2]
[400518552,1767694238451,-500.0,0.00013347,2]
[400518553,1767694238462,-500.0,0.00013347,2]
[400518556,1767694238471,-500.0,0.00013347,2]
[400518558,1767694238481,-500.0,0.00013347,2]
[400518559,1767694238490,-500.0,0.00013347,2]
[400518561,1767694238500,-500.0,0.00013347,2]
[400518564,1767694238510,-500.0,0.00013347,2]
[400518565,1767694238519,-500.0,0.00013347,2]
[400518567,1767694238529,-500.0,0.00013347,2]
[400518570,1767694238539,-500.0,0.00013347,2]
[400518572,1767694238552,-500.0,0.00013347,2]
[400518574,1767694238561,-500.0,0.00013347,2]
[400518576,1767694238571,-500.0,0.00013347,2]
[400518578,1767694238580,-500.0,0.00013347,2]
[400518580,1767694238589,-500.0,0.00013347,2]
[400518582,1767694238598,-500.0,0.00013347,2]
[400518584,1767694238609,-500.0,0.00013347,2]
[400518586,1767694238619,-500.0,0.00013347,2]
[400518588,1767694238628,-500.0,0.00013347,2]
[400518590,1767694238637,-500.0,0.00013347,2]
[400518592,1767694238647,-500.0,0.00013347,2]
[400518594,1767694238657,-500.0,0.00013347,2]
[400518596,1767694238667,-500.0,0.00013347,2]
[400518598,1767694238676,-500.0,0.00013347,2]
[400518600,1767694238685,-500.0,0.00013347,2]
[400518602,1767694238694,-500.0,0.00013347,2]
[400518604,1767694238703,-500.0,0.00013347,2]
[400518606,1767694238713,-500.0,0.00013347,2]
[400518608,1767694238723,-500.0,0.00013347,2]
[400518610,1767694238733,-500.0,0.00013347,2]
[400518612,1767694238743,-500.0,0.00013347,2]
[400518614,1767694238752,-500.0,0.00013347,2]
[400518616,1767694238762,-500.0,0.00013347,2]
[400518618,1767694238771,-500.0,0.00013347,2]
[400518620,1767694238780,-500.0,0.00013347,2]
[400518621,1767694238790,-382.13954466,0.00013347,2]
[400518623,1767694238799,-500.0,0.00013347,2]
[400518625,1767694238809,-977293.35203057,0.00013348,2]
[400518627,1767694238819,-300.0,0.00013401,2]
[400518629,1767694238829,-300.0,0.00013401,2]
[400518632,1767694238839,-300.0,0.00013401,2]
[400518634,1767694238852,-300.0,0.00013401,2]
[400518636,1767694238863,-300.0,0.00013402,2]
[400518637,1767694238872,-50000.0,0.00013447,2]
[400518640,1767694238882,-500.0,0.00013454,2]
[400518642,1767694238895,-151.0,0.000135,2]
[400518644,1767694238904,-153.33454002,0.00013592,2]
[400518646,1767694238914,-500.0,0.00013592,2]
[400518648,1767694238924,-500.0,0.00013592,2]
[400518650,1767694238934,-11728.20686364,0.00013599,2]
[400518652,1767694238946,-500.0,0.00013672,2]
[400518654,1767694238957,-500.0,0.00013672,2]
[400518656,1767694238967,-500.0,0.00013672,2]
[400518658,1767694238977,-500.0,0.00013672,2]
[400518660,1767694238987,-500.0,0.00013672,2]
[400518661,1767694238997,-500.0,0.00013672,2]
[400518662,1767694239008,-500.0,0.00013672,2]
[400518663,1767694239018,-500.0,0.00013672,2]
[400518664,1767694239028,-500.0,0.00013672,2]
[400518665,1767694239038,-500.0,0.00013672,2]
[400518666,1767694239048,-500.0,0.00013672,2]
[400518667,1767694239059,-500.0,0.00013672,2]
[400518668,1767694239069,-500.0,0.00013672,2]
[400518669,1767694239079,-500.0,0.00013672,2]
[400518670,1767694239089,-500.0,0.00013672,2]
[400518671,1767694239099,-500.0,0.00013672,2]
[400518672,1767694239108,-511.14869574,0.00013672,2]
[400518673,1767694239117,-500.0,0.00013698,2]
[400518674,1767694239127,-500.0,0.00013698,2]
[400518675,1767694239136,-500.0,0.00013698,2]
[400518676,1767694239145,-500.0,0.00013698,2]
[400518677,1767694239155,-500.0,0.00013698,2]
[400518678,1767694239164,-500.0,0.00013698,2]
[400518679,1767694239173,-500.0,0.00013698,2]
[400518680,1767694239183,-500.0,0.00013698,2]
[400518681,1767694239195,-500.0,0.00013698,2]
[400518682,1767694239206,-500.0,0.00013698,2]
[400518683,1767694239215,-500.0,0.00013698,2]
[400518684,1767694239225,-500.0,0.00013698,2]
[400518685,1767694239236,-500.0,0.00013698,2]
[400518686,1767694239245,-500.0,0.00013698,2]
[400518687,1767694239255,-500.11958975,0.00013698,2]
[400518688,1767694239266,-188.11386458,0.00013699,2]
[400518689,1767694239276,-1210.91252,0.00013699,2]
[400518690,1767694239285,-273.144062,0.00013699,2]
[400518691,1767694239295,-501.00450759,0.00013699,2]
[400518692,1767694239304,-443.89072638,0.00013699,2]
[400518693,1767694239313,-501.0386878,0.00013699,2]
[400518694,1767694239322,-500.0,0.00013699,2]
[400518695,1767694239333,-338.10821472,0.00013699,2]
[400518696,1767694239343,-502.2601968,0.00013699,2]
[400518697,1767694239352,-500.54517436,0.00013699,2]
[400518698,1767694239362,-505.14600849,0.00013699,2]
[400518699,1767694239371,-500.81877837,0.00013699,2]
[400518700,1767694239381,-151.0,0.00013699,2]
[400518701,1767694239390,-151.0,0.00013699,2]
[400518702,1767694239399,-151.0,0.00013699,2]
[400518703,1767694239408,-193.153565,0.00013699,2]
[400518704,1767694239419,-733.987143,0.00013699,2]
[400518705,1767694239429,-193.153565,0.00013699,2]
[400518706,1767694239439,-733.987143,0.00013699,2]
[400518707,1767694239448,-193.153565,0.00013699,2]
[400518708,1767694239458,-733.987143,0.00013699,2]
[400518709,1767694239467,-193.153565,0.00013699,2]
[400518710,1767694239476,-733.987143,0.00013699,2]
[400518711,1767694239486,-6803.50724114,0.00013699,2]
[400518712,1767694239496,-6803.50724114,0.00013699,2]
[400518713,1767694239506,-6803.50724114,0.00013699,2]
[400518714,1767694239516,-6803.50724114,0.00013699,2]
[400518715,1767694239526,-6803.50724114,0.00013699,2]
[400518716,1767694239536,-6803.50724114,0.00013699,2]
[400518717,1767694239545,-6803.50724114,0.00013699,2]
[400518718,1767694239555,-6803.50724114,0.00013699,2]
[400518719,1767694239566,-6803.50724114,0.00013699,2]
[400518721,1767694239585,-6803.50724114,0.00013699,2]
[400518723,1767694239595,-6803.50724114,0.00013699,2]
[400518724,1767694239605,-6803.50724114,0.00013699,2]
[400518726,1767694239615,-6803.50724114,0.00013699,2]
[400518728,1767694239624,-6803.50724114,0.00013699,2]
[400518730,1767694239634,-6803.50724114,0.00013699,2]
[400518732,1767694239643,-6803.50724114,0.00013699,2]
[400518733,1767694239652,-6803.50724114,0.00013699,2]
[400518734,1767694239662,-6803.50724114,0.00013699,2]
[400518735,1767694239672,-6803.50724114,0.00013699,2]
[400518736,1767694239683,-6803.50724114,0.00013699,2]
[400518738,1767694239692,-6803.50724114,0.00013699,2]
[400518740,1767694239702,-6803.50724114,0.00013699,2]
[400518742,1767694239712,-6803.50724114,0.00013699,2]
[400518744,1767694239722,-6803.50724114,0.00013699,2]
[400518746,1767694239732,-6803.50724114,0.00013699,2]
[400518747,1767694239741,-6803.50724114,0.00013699,2]
[400518749,1767694239751,-6803.50724114,0.00013699,2]
[400518751,1767694239761,-6803.50724114,0.00013699,2]
[400518753,1767694239771,-6803.50724114,0.00013699,2]
[400518754,1767694239781,-6803.50724114,0.00013699,2]
[400518755,1767694239791,-6803.50724114,0.00013699,2]
[400518757,1767694239800,-6803.50724114,0.00013699,2]
[400518758,1767694239810,-6803.50724114,0.00013699,2]
[400518760,1767694239820,-6803.50724114,0.00013699,2]
[400518761,1767694239830,-6803.50724114,0.00013699,2]
[400518762,1767694239839,-6803.50724114,0.00013699,2]
[400518763,1767694239849,-6803.50724114,0.00013699,2]
[400518765,1767694239859,-6803.50724114,0.00013699,2]
[400518767,1767694239868,-6803.50724114,0.00013699,2]
[400518768,1767694239878,-6803.50724114,0.00013699,2]
[400518769,1767694239888,-6803.50724114,0.00013699,2]
[400518770,1767694239898,-6803.50724114,0.00013699,2]
[400518771,1767694239908,-6803.50724114,0.00013699,2]
[400518773,1767694239917,-6803.50724114,0.00013699,2]
[400518775,1767694239927,-6803.50724114,0.00013699,2]
[400518777,1767694239937,-6803.50724114,0.00013699,2]
[400518779,1767694239946,-6803.50724114,0.00013699,2]
[400518781,1767694239956,-6803.50724114,0.00013699,2]
[400518783,1767694239965,-6803.50724114,0.00013699,2]